bitfinex/quotes_SOLUSD_20240918
["timestamp","ask_amount","ask_price","bid_price","bid_amount"]
[1726687678630,7.6258,131.14,131.1,20.25098]
[1726687678833,7.625,131.15,131.1,27.87818]
[1726687679008,82.75372177,131.18,131.1,27.87818]
[1726687679009,7.6254,131.14,131.1,27.87818]
[1726687679214,7.625,131.15,131.1,27.87818]
[1726687679813,7.625,131.15,131.1,7.87818]
[1726687680009,20.0,131.17,131.1,0.25098]
[1726687680330,82.75632177,131.16,131.05,0.25098]
[1726687680520,20.0,131.17,131.04,151.84892177]
[1726687680827,20.0,131.17,131.04,101.84892177]
[1726687680828,7.6264,131.13,131.04,101.84892177]
[1726687681234,7.6219,131.2,131.08,113.69512177]
[1726687681435,7.6229,131.19,131.1,0.12549]
[1726687681729,7.6233,131.18,131.1,0.37647]
[1726687682038,0.5037145,131.21,131.1,64.07159177]
[1726687682239,0.5037145,131.21,131.14,0.37647]
[1726687682414,7.6225,131.19,131.14,0.25098]
[1726687682728,7.6232,131.18,131.14,0.25098]
[1726687682943,7.6226,131.19,131.14,0.25098]
[1726687683107,0.5037145,131.21,131.15,0.12549]
[1726687683530,63.69512177,131.2,131.12,21.9948]
[1726687683740,63.69512177,131.18,131.07,6.5091]
[1726687683906,63.69512177,131.16,131.09,19.07]
[1726687684113,63.69512177,131.16,131.07,6.5091]
[1726687684411,20.0,131.15,131.07,14.1384]
[1726687684630,7.6267,131.12,131.08,7.6288]
[1726687684812,63.69512177,131.16,131.08,7.6288]
[1726687685012,63.69512177,131.14,131.07,6.5091]
[1726687685212,7.6282,131.1,131.06,19.0744]
[1726687685433,7.6264,131.13,131.08,7.6287]
[1726687685641,7.6266,131.12,131.08,7.6287]
[1726687685934,63.69512177,131.16,131.09,7.6281]
[1726687686111,63.69512177,131.16,131.1,7.6276]
[1726687686312,82.75632177,131.16,131.08,19.0715]
[1726687686512,63.69512177,131.14,131.06,7.63]
[1726687686823,7.628,131.1,131.05,26.7063]
[1726687687230,82.75922177,131.14,131.05,19.0758]
[1726687687422,7.626,131.13,131.07,19.0732]
[1726687687617,63.69512177,131.14,131.07,19.0732]
[1726687687934,7.6273,131.11,131.06,7.75509]
[1726687688319,63.69512177,131.12,131.04,26.7079]
[1726687688623,63.69512177,131.12,131.04,19.0772]
[1726687689020,63.69512177,131.12,131.06,7.6299]
[1726687689021,7.6273,131.11,131.06,7.6299]
[1726687689719,7.6278,131.1,131.07,0.12549]
[1726687689925,7.6273,131.11,131.07,7.75489]
[1726687690121,63.93416147,131.14,131.05,0.12549]
[1726687690122,20.0,131.13,131.05,0.12549]
[1726687690332,7.6279,131.1,131.05,7.6306]
[1726687690546,7.6279,131.1,131.06,7.6299]
[1726687690745,7.6272,131.11,131.06,7.6299]
[1726687691033,0.2390397,131.14,131.09,7.6282]
[1726687691248,0.2390397,131.14,131.04,20.0]
[1726687691249,63.93416147,131.14,131.07,7.6294]
[1726687691542,63.93416147,131.14,131.07,7.88038]
[1726687691543,7.6267,131.12,131.07,7.88038]
[1726687692118,7.6273,131.11,131.07,7.88038]
[1726687692326,63.93416147,131.14,131.07,7.88038]
[1726687692327,7.6278,131.1,131.07,0.12549]
[1726687692714,63.93416147,131.14,131.06,19.0743]
[1726687692715,19.0657,131.13,131.06,0.12549]
[1726687692911,63.93416147,131.14,131.06,0.12549]
[1726687693135,0.2390397,131.14,131.08,7.6288]
[1726687693437,7.8646397,131.14,131.09,20.32254579]
[1726687693642,0.2390397,131.14,131.1,7.6272]
[1726687693814,7.8645397,131.14,131.1,7.6272]
[1726687694013,7.8645397,131.14,131.1,0.12549]
[1726687694332,0.2390397,131.14,131.1,7.75319]
[1726687694537,7.8648397,131.14,131.1,0.12549]
[1726687694840,0.2390397,131.14,131.1,7.75269]
[1726687695048,7.8648397,131.14,131.1,0.12549]
[1726687695225,0.2390397,131.14,131.09,19.0703]
[1726687695419,7.6269,131.12,131.09,0.12549]
[1726687695620,7.6269,131.12,131.06,57.2223]
[1726687695621,83.93416147,131.14,131.06,19.074]
[1726687695942,7.6291,131.08,131.03,19.0786]
[1726687696134,19.0712,131.09,131.0,7.805253]
[1726687696335,63.69512177,131.11,131.0,7.805253]
[1726687696638,20.0,131.11,131.04,19.0778]
[1726687697142,7.6295,131.07,131.04,19.0778]
[1726687697348,7.6308,131.05,131.01,34.6429]
[1726687697549,7.6322,131.03,131.0,7.805253]
[1726687697719,7.6295,131.07,131.03,7.6316]
[1726687698035,7.6283,131.09,131.04,7.6308]
[1726687698248,82.76652177,131.09,131.0,15.438753]
[1726687698436,82.76652177,131.09,131.01,7.6328]
[1726687698621,7.6302,131.06,131.02,7.6323]
[1726687699036,7.6296,131.07,131.03,7.6316]
[1726687699231,7.6291,131.08,131.04,7.6311]
[1726687699429,7.6284,131.09,131.04,7.6311]
[1726687700140,7.6284,131.09,131.04,7.6311]
[1726687700446,7.6284,131.09,131.05,7.6305]
[1726687700625,7.627,131.12,131.06,0.12549]
[1726687700833,7.8648397,131.14,131.09,26.6981]
[1726687701141,7.8648397,131.14,131.1,7.6277]
[1726687701448,7.8648397,131.14,131.07,0.25098]
[1726687701449,7.6267,131.12,131.07,0.25098]
[1726687701623,7.6272,131.11,131.07,0.25098]
[1726687701824,0.2390397,131.14,131.06,26.704]
[1726687702049,7.6284,131.09,131.05,0.12549]
[1726687702630,19.4286297,131.14,131.05,19.20179]
[1726687703129,7.6267,131.12,131.07,19.0734]
[1726687703342,0.2390397,131.14,131.08,0.12549]
[1726687703545,0.2390397,131.14,131.11,7.6271]
[1726687703722,0.2390397,131.14,131.06,34.90979]
[1726687703930,7.6268,131.12,131.07,7.87998]
[1726687704155,58.49401375,131.14,131.06,34.7843]
[1726687704359,58.49401375,131.14,131.05,0.25098]
[1726687704537,7.6284,131.09,131.05,7.75599]
[1726687704741,7.6278,131.1,131.06,7.63]
[1726687704934,20.0,131.11,131.0,23.247653]
[1726687705139,7.6291,131.08,131.04,7.6309]
[1726687705371,20.0,131.11,131.05,0.38717917]
[1726687705847,20.0,131.11,131.02,7.632]
[1726687706045,20.0,131.11,131.0,7.805253]
[1726687706046,7.6318,131.03,131.0,7.805253]
[1726687706222,7.6324,131.02,131.0,7.805253]
[1726687706864,58.26697405,131.06,131.0,7.805253]
[1726687707343,7.632,131.03,131.0,0.113253]
[1726687707549,7.633,131.01,131.0,0.113253]
[1726687708126,20.0,131.05,131.0,0.113253]
[1726687708570,20.25098,131.09,131.0,15.438753]
[1726687708727,7.6313,131.04,131.0,15.438753]
[1726687709055,20.37647,131.09,131.0,7.805253]
[1726687709240,7.6328,131.02,131.0,7.805253]
[1726687709552,7.6319,131.03,131.0,0.113253]
[1726687709945,7.633,131.01,131.0,0.113253]
[1726687710253,27.88398,131.01,131.0,5.3e-05]
[1726687710453,7.633,131.01,131.0,5.3e-05]
[1726687710748,7.633,131.01,131.0,7.692053]
[1726687711132,27.633,131.01,131.0,7.692053]
[1726687712350,28.00947,131.01,131.0,7.692053]
[1726687712651,28.00947,131.01,131.0,5.3e-05]
[1726687712863,26.88398,131.01,131.0,5.3e-05]
[1726687713053,27.00947,131.01,131.0,5.3e-05]
[1726687713249,27.00947,131.01,130.95,0.3522927]
[1726687713250,7.6359,130.96,130.95,0.3522927]
[1726687713633,7.6354,130.97,130.95,0.3522927]
[1726687714149,7.6359,130.96,130.95,0.3522927]
[1726687714331,7.6354,130.97,130.95,0.3522927]
[1726687714659,27.6342,130.99,130.95,8.0442927]
[1726687714963,7.6349,130.98,130.95,8.0442927]
[1726687715258,0.12549,131.01,130.95,0.3522927]
[1726687715259,7.6355,130.97,130.95,0.3522927]
[1726687715441,7.6359,130.96,130.95,0.3522927]
[1726687716531,20.0,130.99,130.95,0.3522927]
[1726687716931,19.0801,131.03,130.95,0.3522927]
[1726687717128,7.6346,130.99,130.95,0.3522927]
[1726687717348,19.0801,131.03,130.96,0.12549]
[1726687717349,7.6323,131.03,130.96,0.12549]
[1726687717540,7.6334,131.01,130.96,7.6358]
[1726687717943,6.586,131.05,130.95,0.3522927]
[1726687718169,38.1566,131.04,130.95,0.3522927]
[1726687718454,7.6352,130.98,130.95,0.3522927]
[1726687718632,20.25098,131.02,130.95,0.3522927]
[1726687718835,27.6325,131.02,130.97,7.6352]
[1726687719038,7.6342,130.99,130.95,27.0789927]
[1726687719247,7.6342,130.99,130.95,19.4426927]
[1726687719655,20.0,131.03,130.95,0.3522927]
[1726687719957,7.6352,130.98,130.95,0.3522927]
[1726687720165,38.1564,131.04,130.95,0.3522927]
[1726687720166,19.0787,131.04,130.95,7.9886927]
[1726687720461,19.0744,131.07,130.95,20.3522927]
[1726687720849,19.0778,131.05,130.95,0.3522927]
[1726687721066,38.1447,131.08,130.96,0.25098]
[1726687721369,158.93774529,131.11,130.98,26.7206]
[1726687721370,7.6319,131.03,130.98,26.7206]
[1726687721543,19.0745,131.07,130.96,0.25098]
[1726687721544,19.0745,131.07,130.96,0.12549]
[1726687721741,7.6334,131.01,130.96,7.76089]
[1726687721933,7.6337,131.0,130.95,19.4429927]
[1726687722139,38.1474,131.08,130.95,19.4429927]
[1726687722442,7.6337,131.0,130.95,19.4429927]
[1726687722655,7.6337,131.0,130.95,27.0792927]
[1726687722842,20.0,131.02,130.95,0.3522927]
[1726687723043,7.6337,131.0,130.95,7.9886927]
[1726687723366,7.6342,130.99,130.95,7.9886927]
[1726687723547,7.6335,131.01,130.95,7.9886927]
[1726687723738,7.634,131.0,130.95,7.9886927]
[1726687724055,7.6336,131.0,130.95,7.9881927]
[1726687724260,20.37647,131.05,130.97,7.6352]
[1726687724473,7.6337,131.0,130.96,19.089]
[1726687724969,7.6346,130.99,130.95,0.3522927]
[1726687725157,19.0793,131.04,130.96,0.12549]
[1726687725358,7.633,131.01,130.96,7.76129]
[1726687725672,7.6323,131.03,130.97,19.21289]
[1726687725836,7.633,131.01,130.97,19.0874]
[1726687726035,19.0745,131.07,130.97,26.7227]
[1726687726036,7.6324,131.02,130.97,26.7227]
[1726687726266,7.633,131.01,130.97,26.7227]
[1726687726448,7.6341,131.0,130.95,0.3522927]
[1726687726767,7.6337,131.0,130.95,7.9885927]
[1726687726943,20.0,131.02,130.96,7.76129]
[1726687727142,7.633,131.01,130.97,7.6352]
[1726687727349,19.0761,131.06,130.98,7.6345]
[1726687727350,27.6318,131.03,130.98,7.6345]
[1726687727555,7.6318,131.03,130.99,7.634]
[1726687727950,7.6318,131.03,130.98,26.7206]
[1726687728152,7.632,131.03,130.98,26.7206]
[1726687728547,7.6334,131.01,130.96,7.76089]
[1726687728749,63.78894206,131.04,130.95,0.3522927]
[1726687728750,20.0,131.03,130.95,0.3522927]
[1726687729483,7.6343,130.99,130.95,0.3522927]
[1726687729661,7.6337,131.0,130.96,7.6359]
[1726687729859,7.6337,131.0,130.95,7.9881927]
[1726687730168,0.25098,131.02,130.95,0.3522927]
[1726687730378,7.6355,130.97,130.95,0.3522927]
[1726687730841,7.6341,130.99,130.95,0.3522927]
[1726687731265,59.26013629,131.03,130.95,19.4432927]
[1726687731452,19.33228,131.02,130.95,19.4432927]
[1726687731649,7.6342,130.99,130.95,27.0793927]
[1726687731965,7.6348,130.98,130.95,19.4432927]
[1726687732267,7.6353,130.97,130.95,0.3522927]
[1726687732861,7.6349,130.98,130.95,0.3522927]
[1726687733167,7.6336,131.0,130.96,7.6358]
[1726687733548,57.2337,131.05,130.97,1.52686787]
[1726687733549,20.0,131.02,130.97,1.52686787]
[1726687733851,7.6322,131.03,130.99,7.6341]
[1726687734060,7.6331,131.01,130.98,19.0866]
[1726687734657,7.6324,131.02,130.98,26.7209]
[1726687734863,7.632,131.03,130.99,9.16048944]
[1726687735063,19.0799,131.03,130.95,19.5677827]
[1726687735246,7.6324,131.02,130.98,7.6345]
[1726687735565,7.6314,131.04,130.99,26.7181]
[1726687735803,45.84613629,131.09,130.99,26.7181]
[1726687736077,7.6308,131.05,131.0,0.12549]
[1726687736285,39.26013629,131.09,130.99,19.0845]
[1726687736479,19.0727,131.08,130.99,26.7181]
[1726687736779,59.26013629,131.07,130.99,19.0845]
[1726687737009,7.6334,131.01,130.97,7.6351]
[1726687737282,7.6325,131.02,130.97,7.6351]
[1726687737485,20.0,131.04,130.97,0.12549]
[1726687737654,20.0,131.04,130.98,19.0865]
[1726687737858,20.0,131.04,130.95,36.0526927]
[1726687738065,7.6331,131.01,130.97,7.6352]
[1726687738272,7.6319,131.03,130.98,7.6345]
[1726687738468,20.0,131.04,130.95,16.9624927]
[1726687738469,39.079,131.04,130.95,16.9624927]
[1726687738780,39.079,131.04,130.95,24.5986927]
[1726687738781,7.6343,130.99,130.95,24.5986927]
[1726687738996,19.0828,131.01,130.95,16.9624927]
[1726687739370,7.6337,131.0,130.95,24.5988927]
[1726687739582,0.25098,131.03,130.95,0.3522927]
[1726687739769,7.6331,131.01,130.97,7.6353]
[1726687739978,7.6336,131.0,130.96,7.6354]
[1726687740173,19.0772,131.05,130.95,19.4428927]
[1726687740494,7.6351,130.98,130.95,0.3522927]
[1726687740661,20.0,131.02,130.95,0.3522927]
[1726687741086,0.12549,131.01,130.95,0.3522927]
[1726687741279,39.0817,131.02,130.95,0.3522927]
[1726687741464,20.0,131.04,130.95,0.3522927]
[1726687741668,0.12549,131.02,130.95,0.3522927]
[1726687741867,27.6359,130.96,130.95,0.3522927]
[1726687742067,27.6359,130.96,130.9,0.3522927]
[1726687742068,7.6388,130.91,130.9,0.3522927]
[1726687742368,27.6388,130.91,130.9,0.3522927]
[1726687742584,27.76429,130.91,130.9,0.3522927]
[1726687742803,28.01527,130.91,130.9,0.3522927]
[1726687742976,28.01527,130.91,130.84,0.3522927]
[1726687742977,20.12549,130.89,130.84,0.3522927]
[1726687743576,7.6423,130.85,130.84,0.3522927]
[1726687743785,7.6423,130.85,130.82,30.603568]
[1726687743786,7.6435,130.83,130.82,30.603568]
[1726687743987,27.89448,130.83,130.82,30.603568]
[1726687744286,28.01997,130.83,130.82,14.32756578]
[1726687744607,27.77069,130.8,130.79,0.3522927]
[1726687744811,27.89618,130.8,130.79,0.3522927]
[1726687744981,7.6473,130.77,130.71,19.1253]
[1726687745302,7.6473,130.77,130.7,13.8343]
[1726687745303,7.6477,130.76,130.74,0.3160698]
[1726687745474,0.37647,130.79,130.74,0.3160698]
[1726687745674,7.6476,130.76,130.74,0.3160698]
[1726687745873,20.12549,130.75,130.74,0.3160698]
[1726687746109,7.6512,130.7,130.68,0.3660448]
[1726687746404,20.12549,130.69,130.68,0.3660448]
[1726687746576,20.12549,130.69,130.62,0.3660448]
[1726687746577,7.6535,130.66,130.62,0.3660448]
[1726687746993,20.0,130.68,130.62,0.3660448]
[1726687747603,20.0,130.7,130.65,7.6538]
[1726687747811,7.6498,130.73,130.66,7.6533]
[1726687748094,7.65,130.72,130.64,26.7897]
[1726687748403,20.37647,130.75,130.66,7.6532]
[1726687748404,7.6496,130.73,130.66,7.6532]
[1726687748574,7.65,130.72,130.64,19.1355]
[1726687748908,0.12549,130.74,130.64,19.1355]
[1726687749117,7.6518,130.69,130.64,19.1355]
[1726687749291,0.12549,130.74,130.64,26.7898]
[1726687749599,0.12549,130.74,130.64,19.1355]
[1726687750099,7.6507,130.71,130.65,7.6535]
[1726687750401,7.6507,130.71,130.64,19.1355]
[1726687750402,7.6511,130.7,130.64,19.1355]
[1726687750605,7.6505,130.71,130.65,7.6539]
[1726687750775,20.0,130.75,130.66,7.6533]
[1726687750973,19.1181,130.77,130.66,7.6533]
[1726687751192,7.6493,130.73,130.66,7.6528]
[1726687751395,7.6493,130.73,130.67,7.6527]
[1726687751700,38.2303,130.79,130.65,20.25098]
[1726687751903,6.3814,130.8,130.68,0.12549]
[1726687752199,7.6493,130.73,130.68,7.77759]
[1726687752511,7.6493,130.73,130.68,7.6521]
[1726687752798,19.1162,130.78,130.67,19.1317]
[1726687752981,7.6499,130.72,130.67,19.1317]
[1726687753583,20.37647,130.77,130.67,19.1317]
[1726687753801,20.0,130.76,130.7,19.1275]
[1726687754004,20.0,130.76,130.67,39.1321]
[1726687754206,7.6481,130.75,130.7,7.651]
[1726687754530,7.647,130.77,130.7,0.25098]
[1726687754681,7.6464,130.78,130.72,7.6497]
[1726687754875,7.6472,130.77,130.71,26.7754]
[1726687755079,19.1132,130.8,130.71,19.125]
[1726687755395,19.1132,130.8,130.67,58.2632]
[1726687755396,7.65,130.72,130.67,19.1307]
[1726687755594,38.2287,130.8,130.66,13.9281]
[1726687755595,7.6517,130.69,130.66,6.275]
[1726687755796,38.2287,130.8,130.66,6.275]
[1726687755797,7.6506,130.71,130.66,6.275]
[1726687756102,20.0,130.73,130.66,19.1324]
[1726687756290,7.6499,130.72,130.66,19.1324]
[1726687756599,7.65,130.72,130.67,7.6525]
[1726687756803,20.0,130.76,130.69,7.6516]
[1726687757014,19.1134,130.8,130.66,38.2665]
[1726687757302,7.6464,130.78,130.73,7.6493]
[1726687757503,7.6475,130.77,130.71,26.7766]
[1726687757702,1.69438629,130.82,130.72,0.12549]
[1726687757882,0.3660448,130.82,130.72,0.12549]
[1726687758082,0.3660448,130.82,130.71,19.1262]
[1726687758296,7.6482,130.75,130.71,19.1262]
[1726687758503,7.6476,130.76,130.71,26.7766]
[1726687758819,0.3660448,130.82,130.71,26.7766]
[1726687758820,0.3660448,130.82,130.71,19.1262]
[1726687759106,64.02869365,130.8,130.72,0.12549]
[1726687759284,64.02869365,130.8,130.72,0.37647]
[1726687759482,64.39473845,130.82,130.71,19.1262]
[1726687759705,64.39473845,130.82,130.71,7.6504]
[1726687759706,7.6476,130.76,130.71,7.6504]
[1726687759912,7.6476,130.76,130.74,0.09525086]
[1726687760085,20.0,130.81,130.74,0.09525086]
[1726687760405,7.6451,130.81,130.75,0.25098]
[1726687760612,7.6453,130.8,130.75,19.37138]
[1726687761114,0.3660448,130.82,130.74,0.09525086]
[1726687761405,64.39473845,130.82,130.73,20.25098]
[1726687761612,7.6458,130.8,130.75,0.12549]
[1726687761790,7.6459,130.79,130.74,34.8772]
[1726687761990,7.6459,130.79,130.74,42.5259]
[1726687762208,7.6464,130.78,130.74,34.8772]
[1726687762397,20.0,130.81,130.74,34.8772]
[1726687762606,7.6457,130.8,130.75,7.6481]
[1726687762789,20.0,130.81,130.74,42.5259]
[1726687763112,20.0,130.81,130.75,7.648]
[1726687763410,20.0,130.81,130.74,15.7562]
[1726687764210,7.6458,130.79,130.74,23.4044]
[1726687764506,7.6465,130.78,130.74,23.4044]
[1726687764816,7.647,130.77,130.74,15.7562]
[1726687765016,7.6457,130.8,130.75,7.77319]
[1726687765312,0.3660448,130.82,130.75,7.77319]
[1726687765313,0.3660448,130.82,130.79,7.6456]
[1726687765701,0.3660448,130.82,130.78,7.6463]
[1726687766017,0.3660448,130.82,130.77,26.88869]
[1726687766219,0.3660448,130.82,130.78,7.6461]
[1726687766391,64.39473845,130.82,130.74,15.7562]
[1726687766590,64.39473845,130.82,130.74,23.4045]
[1726687766591,7.6464,130.78,130.74,23.4045]
[1726687766903,0.3660448,130.82,130.75,20.0]
[1726687767094,0.3660448,130.82,130.74,15.7562]
[1726687767289,0.3660448,130.82,130.75,19.1197]
[1726687767495,7.6463,130.79,130.75,26.7678]
[1726687767691,7.6463,130.79,130.75,19.1197]
[1726687768021,7.6464,130.78,130.74,15.7562]
[1726687768318,7.6482,130.75,130.72,6.1122]
[1726687768612,7.6489,130.74,130.7,7.6509]
[1726687768791,19.1153,130.79,130.71,7.65]
[1726687768987,7.6476,130.76,130.72,7.6497]
[1726687769192,7.6465,130.78,130.69,54.8906]
[1726687769541,7.6452,130.8,130.75,7.648]
[1726687770220,0.3660448,130.82,130.76,7.77259]
[1726687770394,7.645,130.81,130.76,0.12549]
[1726687770708,0.3660448,130.82,130.77,19.36798]
[1726687770920,0.3660448,130.82,130.79,19.1135]
[1726687771090,0.3660448,130.82,130.8,0.12549]
[1726687771298,0.3660448,130.82,130.8,0.54116878]
[1726687771494,0.3660448,130.82,130.77,6.32538]
[1726687771716,7.6453,130.8,130.77,6.0744]
[1726687771925,0.3660448,130.82,130.73,25.1968]
[1726687772295,7.6479,130.76,130.73,6.0744]
[1726687772526,7.647,130.77,130.73,13.7236]
[1726687772733,20.0,130.8,130.73,6.0744]
[1726687772931,7.647,130.77,130.73,13.7235]
[1726687773228,0.3660448,130.82,130.75,7.6477]
[1726687773434,7.6462,130.79,130.74,26.7701]
[1726687773631,7.646,130.79,130.75,7.6476]
[1726687773830,0.3660448,130.82,130.74,27.02108]
[1726687773831,7.6464,130.78,130.74,27.02108]
[1726687774037,19.4765448,130.82,130.74,19.37248]
[1726687774038,7.647,130.77,130.74,19.37248]
[1726687774230,19.1135,130.8,130.73,6.0744]
[1726687774430,7.6471,130.77,130.73,6.0744]
[1726687774642,7.6471,130.77,130.73,13.7236]
[1726687774837,7.6457,130.8,130.75,7.6477]
[1726687775045,8.0102448,130.82,130.77,7.6464]
[1726687775342,0.3660448,130.82,130.79,0.12549]
[1726687775746,0.3660448,130.82,130.79,26.88539]
[1726687776243,0.3660448,130.82,130.79,19.23979]
[1726687776635,0.3660448,130.82,130.77,7.6468]
[1726687776832,0.3660448,130.82,130.77,0.12549]
[1726687777055,7.6464,130.78,130.74,7.6486]
[1726687777348,20.3660448,130.82,130.74,20.0]
[1726687777546,20.3660448,130.82,130.78,7.6458]
[1726687777724,0.3660448,130.82,130.78,7.6458]
[1726687777926,0.3660448,130.82,130.77,19.1166]
[1726687778116,8.0102448,130.82,130.78,7.6462]
[1726687778322,8.0102448,130.82,130.78,0.25098]
[1726687778537,7.6448,130.81,130.76,7.6471]
[1726687778733,7.6448,130.81,130.75,0.37647]
[1726687779044,8.0101448,130.82,130.77,7.6465]
[1726687779250,0.3660448,130.82,130.77,0.12549]
[1726687779923,7.646,130.79,130.75,7.6481]
[1726687780119,7.646,130.79,130.74,20.0]
[1726687780120,0.3660448,130.82,130.74,58.2433]
[1726687780335,0.3660448,130.82,130.76,19.1185]
[1726687780540,7.6453,130.8,130.77,1.52908037]
[1726687780843,0.3660448,130.82,130.76,19.1185]
[1726687781027,8.0102448,130.82,130.78,7.6463]
[1726687781220,7.6447,130.81,130.77,0.25098]
[1726687781521,0.3660448,130.82,130.73,32.8457]
[1726687781720,0.3660448,130.82,130.81,7.6446]
[1726687781931,7.6446,130.81,130.77,7.647]
[1726687782231,0.3660448,130.82,130.77,0.12549]
[1726687782441,0.3660448,130.82,130.79,0.12549]
[1726687782849,8.0104448,130.82,130.79,0.25098]
[1726687783148,8.0101448,130.82,130.79,0.12549]
[1726687783336,0.3660448,130.82,130.76,0.25098]
[1726687783649,0.3660448,130.82,130.78,0.12549]
[1726687783650,8.0102448,130.82,130.78,0.12549]
[1726687783947,0.3660448,130.82,130.8,7.6452]
[1726687784120,0.3660448,130.82,130.81,0.12549]
[1726687784320,0.3660448,130.82,130.79,0.12549]
[1726687784572,8.0106448,130.82,130.79,0.12549]
[1726687785334,0.3660448,130.82,130.8,0.12549]
[1726687785537,0.3660448,130.82,130.79,0.25098]
[1726687786248,0.3660448,130.82,130.8,19.23819]
[1726687786425,0.3660448,130.82,130.8,7.6452]
[1726687786621,0.3660448,130.82,130.79,0.37647]
[1726687786622,0.3660448,130.82,130.79,0.25098]
[1726687786930,7.6447,130.81,130.79,0.12549]
[1726687787134,7.6452,130.8,130.79,0.12549]
[1726687787430,7.6452,130.8,130.77,0.25098]
[1726687787633,7.6448,130.81,130.77,0.25098]
[1726687787853,19.4770448,130.82,130.73,23.33382368]
[1726687788036,7.6457,130.8,130.76,7.6475]
[1726687788423,0.3660448,130.82,130.77,38.2347]
[1726687788763,0.3660448,130.82,130.81,7.6446]
[1726687789053,0.3660448,130.82,130.81,7.89558]
[1726687789433,0.3660448,130.82,130.81,8.02107]
[1726687789740,0.3660448,130.82,130.8,0.25098]
[1726687789945,0.3660448,130.82,130.76,19.1177]
[1726687790253,7.6448,130.81,130.77,8.02307]
[1726687790629,7.6448,130.81,130.78,0.46598295]
[1726687790837,7.6448,130.81,130.77,7.77209]
[1726687791148,0.3660448,130.82,130.81,7.6446]
[1726687791338,0.3660448,130.82,130.8,26.7578]
[1726687791526,0.3660448,130.82,130.77,0.12549]
[1726687791728,0.3660448,130.82,130.79,7.6453]
[1726687791930,7.6455,130.8,130.75,7.6476]
[1726687792150,8.0105448,130.82,130.77,7.6467]
[1726687792424,0.3660448,130.82,130.73,23.33382368]
[1726687792628,0.3660448,130.82,130.73,42.45602368]
[1726687792937,7.6466,130.78,130.73,42.45602368]
[1726687793134,7.6458,130.8,130.75,19.1199]
[1726687793338,7.6446,130.81,130.75,19.1199]
[1726687793536,0.3660448,130.82,130.73,150.96666567]
[1726687793736,0.3660448,130.82,130.79,19.1139]
[1726687793960,0.3660448,130.82,130.81,8.02107]
[1726687794137,0.3660448,130.82,130.81,7.89558]
[1726687794453,0.3660448,130.82,130.81,0.12549]
[1726687794753,0.3660448,130.82,130.79,19.1139]
[1726687794956,0.3660448,130.82,130.8,0.12549]
[1726687795135,0.3660448,130.82,130.77,0.25098]
[1726687795136,7.6453,130.8,130.77,0.25098]
[1726687795336,7.6448,130.81,130.78,0.12549]
[1726687795539,0.3660448,130.82,130.81,26.88169]
[1726687795750,0.3660448,130.82,130.81,19.23709]
[1726687795936,0.3660448,130.82,130.78,26.7611]
[1726687796132,0.3660448,130.82,130.79,0.25098]
[1726687796349,0.3660448,130.82,130.79,7.89618]
[1726687797234,0.3660448,130.82,130.8,0.12549]
[1726687797450,0.3660448,130.82,130.81,0.12549]
[1726687798154,0.3660448,130.82,130.79,0.12549]
[1726687798364,0.3660448,130.82,130.77,39.1164]
[1726687798544,0.3660448,130.82,130.77,19.1164]
[1726687798859,8.0106448,130.82,130.77,26.7632]
[1726687799244,0.3660448,130.82,130.79,19.1142]
[1726687799456,0.3660448,130.82,130.81,7.6446]
[1726687800360,0.3660448,130.82,130.81,28.02107]
[1726687800879,0.3660448,130.88,130.87,47.12047]
[1726687802066,0.3660448,130.88,130.87,27.12047]
[1726687802252,0.3660448,130.88,130.87,0.37647]
[1726687802463,0.3660448,130.88,130.85,20.0]
[1726687802763,0.3660448,130.88,130.83,19.1079]
[1726687802971,0.3666981,130.92,130.83,38.2149]
[1726687803152,0.6651933,130.92,130.91,7.6388]